bitfinex/quotes_BTCUSD_20230110
["timestamp","ask_amount","ask_price","bid_price","bid_amount"]
[1673384021357,1.12229771,17490.0,17489.0,0.14295967]
[1673384021865,0.77972184,17490.0,17489.0,0.14295967]
[1673384022113,0.77972184,17490.0,17489.0,0.14286801]
[1673384022368,0.35151197,17490.0,17489.0,0.14286801]
[1673384022866,0.35151197,17490.0,17489.0,0.14295967]
[1673384026048,0.35151197,17490.0,17489.0,0.14286801]
[1673384027328,0.77979306,17490.0,17489.0,0.14286801]
[1673384029377,0.73605706,17490.0,17489.0,0.14286801]
[1673384029624,0.73605706,17490.0,17489.0,0.14295967]
[1673384030590,0.73605706,17490.0,17489.0,0.14286801]
[1673384030835,0.30777597,17490.0,17489.0,0.14286801]
[1673384031329,0.35151197,17490.0,17489.0,0.14286801]
[1673384032330,1.16526089,17490.0,17489.0,0.14286801]
[1673384032835,1.16226089,17490.0,17489.0,0.14286801]
[1673384034080,1.16226089,17490.0,17489.0,0.14296401]
[1673384034326,1.16226089,17490.0,17489.0,0.14286801]
[1673384035116,1.32586089,17490.0,17489.0,0.14286801]
[1673384035953,1.02586089,17490.0,17489.0,0.14286801]
[1673384036191,1.32586089,17490.0,17489.0,0.14286801]
[1673384037205,1.02586089,17490.0,17489.0,0.14286801]
[1673384037467,1.02486089,17490.0,17489.0,0.14286801]
[1673384037714,1.02486089,17490.0,17489.0,0.14295989]
[1673384038190,1.02486089,17490.0,17489.0,0.14286801]
[1673384038688,0.51111197,17490.0,17489.0,0.14295989]
[1673384038933,0.51111197,17490.0,17489.0,0.14286801]
[1673384039175,1.02486089,17490.0,17489.0,0.14286801]
[1673384039923,1.32486089,17490.0,17489.0,0.14286801]
[1673384042166,1.02486089,17490.0,17489.0,0.14286801]
[1673384042425,1.32486089,17490.0,17489.0,0.14286801]
[1673384042676,0.7274734,17490.0,17489.0,0.14286801]
[1673384045170,0.4274734,17490.0,17489.0,0.14286801]
[1673384045421,0.7274734,17490.0,17489.0,0.14286801]
[1673384045666,0.85602789,17490.0,17489.0,0.14296381]
[1673384046169,0.4274734,17490.0,17489.0,0.14296381]
[1673384046660,0.4274734,17490.0,17489.0,0.14286801]
[1673384047166,0.7274734,17490.0,17489.0,0.14286801]
[1673384047714,1.24122232,17490.0,17489.0,0.14286801]
[1673384047968,1.25489818,17490.0,17489.0,0.14286801]
[1673384048229,1.81168151,17490.0,17489.0,0.14286801]
[1673384048482,1.67118562,17490.0,17489.0,0.14286801]
[1673384049004,2.18564349,17490.0,17489.0,0.09196065]
[1673384049263,1.67118562,17490.0,17489.0,0.07767965]
[1673384049805,2.24294062,17490.0,17489.0,0.07767965]
[1673384050049,2.64490482,17490.0,17489.0,0.07767965]
[1673384051036,3.15930985,17490.0,17489.0,0.07767965]
[1673384051293,3.15930985,17490.0,17489.0,0.07750198]
[1673384051540,2.9023926,17490.0,17489.0,0.07750198]
[1673384051798,2.38798757,17490.0,17489.0,0.07750198]
[1673384052553,2.96725946,17490.0,17489.0,0.07750198]
[1673384052814,3.18950867,17490.0,17489.0,0.07750198]
[1673384053910,3.19800867,17490.0,17489.0,0.07750198]
[1673384054960,0.2,17489.0,17487.0,6e-05]
[1673384055212,2.18412629,17488.0,17487.0,6e-05]
[1673384055459,2.52786229,17488.0,17487.0,6e-05]
[1673384056974,2.53186229,17488.0,17487.0,0.04706]
[1673384058572,2.017676,17488.0,17487.0,0.04706]
[1673384058856,2.43003272,17488.0,17487.0,0.047]
[1673384060356,2.94421901,17488.0,17487.0,0.047]
[1673384060595,2.53186229,17488.0,17487.0,0.047]
[1673384060844,2.017676,17488.0,17487.0,0.047]
[1673384061100,2.25646484,17488.0,17487.0,0.047]
[1673384061356,2.017676,17488.0,17487.0,0.047]
[1673384061608,2.017676,17488.0,17487.0,0.0674]
[1673384062338,2.91223892,17488.0,17487.0,0.0674]
[1673384067114,2.53186229,17488.0,17487.0,0.0674]
[1673384070639,2.36876229,17488.0,17487.0,0.0674]
[1673384071144,2.56060037,17488.0,17487.0,0.06764458]
[1673384071388,2.17429055,17488.0,17487.0,0.06764458]
[1673384071634,2.17429055,17488.0,17487.0,0.0674]
[1673384071635,1.38321408,17488.0,17487.0,0.0674]
[1673384071886,1.81112374,17488.0,17487.0,0.0674]
[1673384072138,1.00980511,17488.0,17487.0,0.30532247]
[1673384072387,1.00980511,17488.0,17487.0,0.06764458]
[1673384072388,0.83862933,17488.0,17487.0,0.06764458]
[1673384072900,0.79489333,17488.0,17487.0,0.06764458]
[1673384073152,0.62372356,17488.0,17487.0,0.06764458]
[1673384073397,1.00978101,17488.0,17487.0,0.06764458]
[1673384073645,0.62374016,17488.0,17487.0,0.06764458]
[1673384073894,0.66747616,17488.0,17487.0,0.06764458]
[1673384074149,0.62374016,17488.0,17487.0,0.06764458]
[1673384074938,0.66747616,17488.0,17487.0,0.06853027]
[1673384075190,0.66747616,17488.0,17487.0,0.0674]
[1673384075692,0.83862933,17488.0,17487.0,0.0674]
[1673384076721,0.79489333,17488.0,17487.0,0.0674]
[1673384076969,0.79489333,17488.0,17487.0,0.06853027]
[1673384077222,0.62375936,17488.0,17487.0,0.06853027]
[1673384077786,0.62375936,17488.0,17487.0,0.0674]
[1673384078017,0.43192128,17488.0,17487.0,0.23]
[1673384078277,0.43192128,17488.0,17487.0,1.82738929]
[1673384078278,0.004,17488.0,17487.0,1.82738929]
[1673384078530,0.004,17488.0,17487.0,2.39924229]
[1673384078790,0.44057442,17490.0,17488.0,0.2]
[1673384079044,0.44057442,17490.0,17489.0,0.358455]
[1673384079310,0.44057442,17490.0,17488.0,1.42388451]
[1673384079821,0.44057442,17490.0,17488.0,1.99570451]
[1673384080071,0.43481309,17489.0,17488.0,0.1636]
[1673384080392,1.07512488,17489.0,17487.0,0.0204]
[1673384080618,0.42795079,17488.0,17487.0,0.00136262]
[1673384080892,0.47168679,17488.0,17487.0,0.00136262]
[1673384081155,0.42795079,17488.0,17487.0,0.00136262]
[1673384081406,0.63281855,17488.0,17486.0,0.802986]
[1673384081668,0.63281855,17488.0,17486.0,0.163]
[1673384081669,0.17119422,17487.0,17486.0,0.163]
[1673384082659,0.63283245,17488.0,17486.0,0.163]
[1673384082914,0.63283245,17488.0,17486.0,0.1643627]
[1673384083421,0.97515382,17488.0,17486.0,0.1847627]
[1673384083687,0.63283245,17488.0,17486.0,0.1847627]
[1673384083954,0.25652397,17487.0,17486.0,0.2767627]
[1673384084454,0.25590797,17487.0,17486.0,0.2767627]
[1673384084704,0.42710219,17487.0,17486.0,0.2767627]
[1673384085732,0.25590797,17487.0,17486.0,0.1847627]
[1673384086000,0.43510219,17487.0,17486.0,0.2767627]
[1673384087033,0.43510219,17487.0,17486.0,0.2754]
[1673384087282,0.69187266,17487.0,17486.0,0.2754]
[1673384088061,0.69187266,17487.0,17486.0,0.1124]
[1673384088062,0.86299981,17487.0,17486.0,0.1124]
[1673384088318,1.20673581,17487.0,17486.0,0.1124]
[1673384088570,1.377875,17487.0,17486.0,0.1124]
[1673384089358,1.577875,17487.0,17486.0,0.1124]
[1673384090107,1.23555363,17487.0,17486.0,0.1124]
[1673384090360,1.03555363,17487.0,17486.0,0.1124]
[1673384090611,1.07809632,17487.0,17486.0,0.1137627]
[1673384090871,0.90708878,17487.0,17486.0,0.1124]
[1673384092645,0.90708878,17487.0,17486.0,2.1224]
[1673384092910,0.69208086,17487.0,17486.0,2.1224]
[1673384093160,0.43517874,17487.0,17486.0,2.1224]
[1673384094424,0.43517874,17487.0,17486.0,2.12270049]
[1673384096425,0.69208086,17487.0,17486.0,2.12270049]
[1673384096685,0.43517874,17487.0,17486.0,2.1224]
[1673384096940,0.69208086,17487.0,17486.0,2.1224]
[1673384097709,0.69208086,17487.0,17486.0,2.12270049]
[1673384098252,0.69208086,17487.0,17486.0,2.1224]
[1673384100767,0.17927077,17487.0,17486.0,3.54735107]
[1673384101026,0.008,17487.0,17486.0,3.54735107]
[1673384101281,0.008,17487.0,17486.0,3.90580607]
[1673384101543,0.008,17487.0,17486.0,3.90756245]
[1673384101801,0.008,17487.0,17486.0,5.12925372]
[1673384102064,0.008,17487.0,17486.0,5.29285372]
[1673384102606,0.38721081,17490.0,17487.0,0.2]
[1673384102863,0.21594004,17490.0,17489.0,0.1636]
[1673384103120,0.21594004,17490.0,17489.0,0.70152364]
[1673384103445,0.00982941,17490.0,17489.0,0.90152364]
[1673384103644,0.00982941,17490.0,17489.0,0.5258]
[1673384104666,0.00982941,17490.0,17489.0,1.097587]
[1673384104919,0.00982941,17490.0,17489.0,1.456042]
[1673384105166,0.00982941,17490.0,17489.0,1.459042]
[1673384105679,0.00982941,17490.0,17489.0,1.99696564]
[1673384105938,0.00982941,17490.0,17489.0,1.99705343]
[1673384106194,0.00982941,17490.0,17489.0,0.90067479]
[1673384106452,0.00982941,17490.0,17489.0,0.3288]
[1673384106963,0.00982941,17490.0,17489.0,0.32888779]
[1673384108241,0.00982941,17490.0,17489.0,0.52888779]
[1673384109508,0.00982941,17490.0,17489.0,1.45912979]
[1673384109980,0.00982941,17490.0,17489.0,1.10067479]
[1673384110754,0.00982941,17490.0,17489.0,1.45912979]
[1673384111011,0.00982941,17490.0,17489.0,1.29552979]
[1673384111273,0.00982941,17490.0,17489.0,1.47499843]
[1673384112557,0.00982941,17490.0,17489.0,2.04678543]
[1673384114029,0.00982941,17490.0,17489.0,1.50886179]
[1673384114275,0.00982941,17490.0,17489.0,0.93707479]
[1673384114771,0.00982941,17490.0,17489.0,1.47499843]
[1673384115774,0.00982941,17490.0,17489.0,0.93707479]
[1673384116287,0.00982941,17490.0,17489.0,1.50886179]
[1673384117511,0.00982941,17490.0,17489.0,2.04678543]
[1673384118501,0.00982941,17490.0,17489.0,2.65285049]
[1673384119050,0.00982941,17490.0,17489.0,2.81555049]
[1673384119304,0.00982941,17490.0,17489.0,3.17400549]
[1673384120222,0.00982941,17490.0,17489.0,2.81555049]
[1673384120486,0.00982941,17490.0,17489.0,2.20948543]
[1673384120737,0.00982941,17490.0,17489.0,3.10967726]
[1673384121535,0.00982941,17490.0,17489.0,3.12760426]
[1673384123062,0.00982941,17490.0,17489.0,3.26677993]
[1673384123306,0.00982941,17490.0,17489.0,2.58586743]
[1673384123846,0.00982941,17490.0,17489.0,3.17845932]
[1673384124541,0.00982941,17490.0,17489.0,3.1798151]
[1673384127399,0.00982941,17490.0,17489.0,4.87159299]
[1673384127618,0.01492274,17491.0,17489.0,4.87159299]
[1673384127619,0.01492274,17491.0,17490.0,0.14726882]
[1673384127883,0.01492274,17491.0,17490.0,7.23661155]
[1673384128136,0.01492274,17491.0,17490.0,6.68384417]
[1673384128889,0.01492274,17491.0,17490.0,6.51366468]
[1673384129656,0.01492274,17491.0,17490.0,7.13792424]
[1673384129975,0.01492274,17491.0,17490.0,5.99352868]
[1673384130417,0.01492274,17491.0,17490.0,5.90050537]
[1673384130665,0.01492274,17491.0,17490.0,6.03850537]
[1673384130924,0.01492274,17491.0,17490.0,5.73850537]
[1673384131437,0.01492274,17491.0,17490.0,6.03850537]
[1673384132451,0.02006477,17494.0,17491.0,0.2]
[1673384132452,1e-08,17494.0,17491.0,0.2]
[1673384132698,1e-08,17494.0,17493.0,0.3243]
[1673384132945,1e-08,17494.0,17493.0,2.36399264]
[1673384133965,0.16870795,17494.0,17493.0,1.826069]
[1673384134228,1e-08,17494.0,17493.0,1.663869]
[1673384134486,0.27864306,17495.0,17493.0,1.231212]
[1673384134729,0.01506478,17495.0,17493.0,0.872757]
[1673384134972,0.01506478,17495.0,17494.0,0.2]
[1673384135979,0.01506478,17495.0,17494.0,0.14]
[1673384136221,0.01506478,17495.0,17494.0,0.34]
[1673384137262,0.01506478,17495.0,17494.0,0.34006]
[1673384137521,0.01506478,17495.0,17494.0,1.44691024]
[1673384139041,0.01506478,17495.0,17494.0,3.24151288]
[1673384139583,0.01506478,17495.0,17494.0,2.86988664]
[1673384139843,0.01506478,17495.0,17494.0,6.32907595]
[1673384140118,0.01506478,17495.0,17494.0,7.42733556]
[1673384140367,0.01506478,17495.0,17494.0,6.32907595]
[1673384141121,0.01506478,17495.0,17494.0,6.18907595]
[1673384141374,0.01506478,17495.0,17494.0,6.15868]
[1673384141592,0.01506478,17495.0,17494.0,6.01968]
[1673384141850,0.01506478,17495.0,17494.0,6.15768]
[1673384142362,0.01506478,17495.0,17494.0,6.32707595]
[1673384142605,0.01506478,17495.0,17494.0,6.15768]
[1673384143343,0.01506478,17495.0,17494.0,6.175607]
[1673384145055,0.01506478,17495.0,17494.0,8.185607]
[1673384145313,0.01506478,17495.0,17494.0,8.18563477]
[1673384146021,0.01506478,17495.0,17494.0,8.75091968]
[1673384146543,0.01506478,17495.0,17494.0,7.60739799]
[1673384146789,0.01506478,17495.0,17494.0,8.750996]
[1673384147042,0.01506478,17495.0,17494.0,6.62579799]
[1673384147569,0.01506478,17495.0,17494.0,6.03185032]
[1673384149766,0.01506478,17495.0,17494.0,5.49392668]
[1673384150053,0.01506478,17495.0,17494.0,5.86825032]
[1673384150561,0.01506478,17495.0,17494.0,5.54255032]
[1673384152295,0.01506478,17495.0,17494.0,5.40455032]
[1673384152547,0.01606478,17495.0,17494.0,5.54355032]
[1673384152759,0.01606478,17495.0,17494.0,4.43400268]
[1673384153276,0.01606478,17495.0,17494.0,4.97192632]
[1673384155544,0.01606478,17495.0,17494.0,4.40664141]
[1673384155798,0.01606478,17495.0,17494.0,4.56944141]
[1673384156062,0.01606478,17495.0,17494.0,7.51315966]
[1673384156307,0.01994335,17496.0,17495.0,0.23212956]
[1673384156558,0.01994335,17496.0,17495.0,4.33618445]
[1673384156805,0.01994335,17496.0,17495.0,4.87607028]
[1673384157053,0.01994335,17496.0,17495.0,4.71247028]
[1673384157304,0.01994335,17496.0,17495.0,4.71769556]
[1673384157553,0.02094335,17496.0,17495.0,4.85669556]
[1673384157806,0.02094335,17496.0,17495.0,3.71314898]
[1673384159066,0.02094335,17496.0,17495.0,4.8566962]
[1673384159560,0.02094335,17496.0,17495.0,3.71314898]
[1673384159818,0.02094335,17496.0,17495.0,3.54974898]
[1673384160344,0.02094335,17496.0,17495.0,3.54980898]
[1673384161805,0.02094335,17496.0,17495.0,4.14129328]
[1673384162059,0.02094335,17496.0,17495.0,5.0285986]
[1673384162558,0.72659711,17499.0,17496.0,0.2]
[1673384162824,0.72659711,17499.0,17497.0,2.03943064]
[1673384163084,0.26499711,17499.0,17498.0,0.558455]
[1673384163334,0.26499711,17499.0,17496.0,1.42086014]
[1673384163584,0.26118407,17498.0,17497.0,0.571506]
[1673384164567,0.26218407,17498.0,17497.0,0.711506]
[1673384165340,0.26218407,17498.0,17497.0,0.729433]
[1673384167371,0.26218407,17498.0,17497.0,2.739433]
[1673384168374,0.26218407,17498.0,17497.0,2.167927]
[1673384168632,0.26218407,17498.0,17497.0,2.167987]
[1673384172157,0.43345484,17498.0,17497.0,2.167987]
[1673384172924,0.69035696,17498.0,17497.0,2.167987]
[1673384173445,0.43345484,17498.0,17497.0,2.167987]
[1673384173697,0.43345484,17498.0,17497.0,2.167927]
[1673384176942,0.69035696,17498.0,17497.0,2.167927]
[1673384179435,0.86162888,17498.0,17497.0,2.167927]
[1673384180504,1.03291985,17498.0,17497.0,2.167927]
[1673384180686,0.69037716,17498.0,17497.0,2.167927]
[1673384180951,0.86162888,17498.0,17497.0,2.167927]
[1673384181198,0.6903847,17498.0,17497.0,2.167927]
[1673384185290,0.6903847,17498.0,17497.0,2.117927]
[1673384185538,0.17229851,17498.0,17497.0,2.889453]
[1673384185784,0.17229851,17498.0,17497.0,2.88953282]
[1673384186806,0.17229851,17498.0,17497.0,2.117927]
[1673384189070,0.42920063,17498.0,17497.0,2.117927]
[1673384189591,0.17229851,17498.0,17497.0,2.117927]
[1673384189861,0.37915026,17498.0,17497.0,2.117927]
[1673384190114,0.63605238,17498.0,17497.0,2.117927]
[1673384190399,0.63605238,17498.0,17497.0,2.11800682]
[1673384190604,0.63605238,17498.0,17497.0,2.117927]
[1673384191390,0.63605238,17498.0,17497.0,2.11800682]
[1673384192148,0.63605238,17498.0,17497.0,2.117927]
[1673384192410,0.63605238,17498.0,17497.0,2.11800682]
[1673384192699,0.80729656,17498.0,17497.0,2.117927]
[1673384192952,0.9783041,17498.0,17497.0,2.117927]
[1673384193461,0.80741983,17498.0,17497.0,2.11800682]
[1673384193723,0.9783041,17498.0,17497.0,2.117927]
[1673384193966,1.10183705,17498.0,17497.0,2.117927]
[1673384194476,0.80741923,17498.0,17497.0,2.117927]
[1673384194743,1.0493536,17498.0,17497.0,2.117927]
[1673384195002,0.73004394,17498.0,17497.0,2.117927]
[1673384195256,1.132829,17498.0,17497.0,2.117927]
[1673384195529,1.54191251,17498.0,17497.0,2.117927]
[1673384195784,1.904322,17498.0,17497.0,2.117927]
[1673384196509,2.15160016,17498.0,17497.0,2.027927]
[1673384196779,2.16260016,17498.0,17497.0,2.027927]
[1673384197026,2.67644592,17498.0,17497.0,2.027927]
[1673384197285,2.16260016,17498.0,17497.0,2.027927]
[1673384199814,2.16260016,17498.0,17497.0,0.017927]
[1673384201292,2.15760016,17498.0,17497.0,0.017927]
[1673384203838,2.16610016,17498.0,17497.0,0.017927]
[1673384204806,2.67919331,17498.0,17497.0,0.017927]
[1673384205054,2.43091515,17498.0,17497.0,0.017927]
[1673384205817,1.917822,17498.0,17497.0,0.017927]
[1673384206808,2.4309068,17498.0,17497.0,0.017927]
[1673384207805,1.917822,17498.0,17497.0,0.017927]
[1673384208312,2.28934916,17498.0,17497.0,0.017927]
[1673384208812,2.80224514,17498.0,17497.0,0.017927]
[1673384212864,2.79224514,17498.0,17497.0,0.017927]
[1673384214850,2.27934916,17498.0,17497.0,0.017927]
[1673384215599,2.33907429,17498.0,17497.0,0.017927]
[1673384216648,2.87229752,17498.0,17497.0,0.017927]
[1673384216926,2.33907429,17498.0,17497.0,0.017927]
[1673384217419,2.87229759,17498.0,17497.0,0.017927]
[1673384217673,3.04100553,17498.0,17497.0,0.017927]
[1673384217931,2.98129759,17498.0,17497.0,0.017927]
[1673384219501,2.43707429,17498.0,17497.0,0.017927]
[1673384219822,3.04367269,17498.0,17497.0,0.027927]
[1673384220261,3.62033164,17498.0,17497.0,0.027927]
[1673384220799,3.04367269,17498.0,17497.0,0.027927]
[1673384221851,3.62034451,17498.0,17497.0,0.027927]
[1673384222107,3.04367269,17498.0,17497.0,0.027927]
[1673384222629,3.38797269,17498.0,17497.0,0.027927]
[1673384224168,2.48384713,17498.0,17497.0,0.027927]
[1673384224420,2.89728769,17498.0,17497.0,0.027927]
[1673384225195,2.36117149,17498.0,17497.0,0.027927]
[1673384225449,2.62730509,17498.0,17497.0,0.027927]
[1673384225701,2.36117149,17498.0,17497.0,0.027927]
[1673384226220,2.45252448,17498.0,17497.0,0.027927]
[1673384226736,2.24000012,17498.0,17497.0,0.027927]
[1673384226954,2.81654068,17498.0,17497.0,0.027927]
[1673384227247,2.24850012,17498.0,17497.0,0.027927]
[1673384227506,2.15714713,17498.0,17497.0,2.037927]
[1673384227767,2.41247675,17498.0,17497.0,2.037927]
[1673384228022,2.88676559,17498.0,17497.0,2.037927]
[1673384228282,2.34162964,17498.0,17497.0,2.03774836]
[1673384229293,1.82894713,17498.0,17497.0,2.03774836]
[1673384229539,2.0788694,17498.0,17497.0,2.03774836]
[1673384229788,1.82894713,17498.0,17497.0,2.03774836]
[1673384230047,2.07065222,17498.0,17497.0,2.03774836]
[1673384230820,2.39575222,17498.0,17497.0,2.03774836]
[1673384231823,2.97229278,17498.0,17497.0,2.03774836]
[1673384232080,3.06043541,17498.0,17497.0,2.03774836]
[1673384232553,3.32569535,17498.0,17497.0,2.03774836]
[1673384233054,3.30022771,17498.0,17497.0,2.03774836]
[1673384234507,3.06043541,17498.0,17497.0,2.03774836]
[1673384234757,2.70511837,17498.0,17497.0,2.03774836]
[1673384235245,2.48389485,17498.0,17497.0,2.03774836]
[1673384235493,2.67956616,17498.0,17497.0,2.03774836]
[1673384235753,2.34971844,17498.0,17497.0,2.03774836]
[1673384236275,2.15404713,17498.0,17497.0,2.03774836]
[1673384241690,2.15404713,17498.0,17497.0,1.41724481]
[1673384241965,2.84894054,17498.0,17497.0,1.41724481]
[1673384242213,3.35262113,17498.0,17497.0,1.41724481]
[1673384242480,3.19002113,17498.0,17497.0,1.41724481]
[1673384245223,4.03490452,17498.0,17497.0,1.41724481]
[1673384245519,3.19002113,17498.0,17497.0,1.41724481]
[1673384246311,2.65702772,17498.0,17497.0,1.41724481]
[1673384248108,2.65702772,17498.0,17497.0,1.42614481]
[1673384249873,3.1898828,17498.0,17497.0,1.42614481]
[1673384250134,3.18988142,17498.0,17497.0,1.42614481]
[1673384250400,2.65702772,17498.0,17497.0,1.42614481]
[1673384252656,4.03481376,17498.0,17497.0,1.42614481]
[1673384256805,4.46051954,17498.0,17497.0,1.36082003]
[1673384257092,3.61963615,17498.0,17497.0,1.36082003]
[1673384258622,3.68163615,17498.0,17497.0,1.36082003]
[1673384258877,3.68163615,17498.0,17497.0,1.18488888]
[1673384259125,3.68163615,17498.0,17497.0,1.11956409]
[1673384259376,3.54563615,17498.0,17497.0,0.70059245]
[1673384259883,3.54563615,17498.0,17497.0,0.43071418]
[1673384260133,3.68263615,17498.0,17497.0,0.43071418]
[1673384260383,3.54563615,17498.0,17497.0,0.43071418]
[1673384260638,3.68263615,17498.0,17497.0,0.43071418]
[1673384261964,4.25675563,17498.0,17497.0,0.43071418]
[1673384262199,4.52557382,17498.0,17497.0,0.43071418]
[1673384266722,0.2,17497.0,17496.0,6e-05]
[1673384266980,3.79624602,17497.0,17496.0,6e-05]
[1673384267230,3.89302055,17497.0,17496.0,6e-05]
[1673384267953,4.17879055,17497.0,17496.0,6e-05]
[1673384268692,4.31579055,17497.0,17496.0,6e-05]
[1673384268934,3.66567459,17497.0,17496.0,6e-05]
[1673384272953,3.93450773,17497.0,17496.0,6e-05]
[1673384274226,3.09160119,17497.0,17496.0,6e-05]
[1673384274977,3.93460028,17497.0,17496.0,6e-05]
[1673384275495,3.93460028,17497.0,17496.0,0.00586]
[1673384275764,3.93460028,17497.0,17496.0,0.0058]
[1673384277025,3.93586395,17497.0,17496.0,0.0058]
[1673384277257,3.93606072,17497.0,17496.0,0.0058]
[1673384277506,3.09286486,17497.0,17496.0,0.0058]
[1673384278013,3.02403172,17497.0,17496.0,0.0058]
[1673384278520,3.29286605,17497.0,17496.0,0.0058]
[1673384279011,3.23487552,17497.0,17496.0,0.0058]
[1673384279540,0.2,17496.0,17492.0,0.00021]
[1673384279794,0.5782591,17493.0,17492.0,0.00021]
[1673384280039,2.80072204,17493.0,17492.0,0.00021]
[1673384280298,2.80072204,17493.0,17492.0,6e-05]
[1673384280299,2.053755,17493.0,17492.0,6e-05]
[1673384280549,2.63200383,17493.0,17492.0,6e-05]
[1673384280827,2.76800383,17493.0,17492.0,6e-05]
[1673384281117,2.63200383,17493.0,17492.0,6e-05]
[1673384281322,2.76800383,17493.0,17492.0,6e-05]
[1673384282090,2.63200383,17493.0,17492.0,6e-05]
[1673384282392,3.05120421,17493.0,17492.0,6e-05]
[1673384282611,2.82962766,17493.0,17492.0,6e-05]
[1673384283372,2.89362766,17493.0,17492.0,6e-05]
[1673384283644,3.02962766,17493.0,17492.0,6e-05]
[1673384285157,3.60783453,17493.0,17492.0,6e-05]
[1673384285450,4.00496798,17493.0,17492.0,6e-05]
[1673384285705,3.60783453,17493.0,17492.0,6e-05]
[1673384285966,0.2,17492.0,17491.0,0.00307925]
[1673384286257,1.643378,17492.0,17491.0,0.00307925]
[1673384286500,1.682162,17492.0,17491.0,0.00307925]
[1673384287006,1.482162,17492.0,17491.0,0.00307925]
[1673384287724,1.618162,17492.0,17491.0,0.00307925]
[1673384289986,2.19636887,17492.0,17491.0,0.00307925]
[1673384290238,1.618162,17492.0,17491.0,0.00307925]
[1673384290948,2.19636887,17492.0,17491.0,0.00307925]
[1673384291446,1.618162,17492.0,17491.0,0.00307925]
[1673384292727,2.19636887,17492.0,17491.0,0.00307925]
[1673384293969,2.69999302,17492.0,17491.0,0.00301925]
[1673384294707,2.39636887,17492.0,17491.0,0.00301925]
[1673384295729,2.19636887,17492.0,17491.0,0.00301925]
[1673384296489,2.39636887,17492.0,17491.0,0.00301925]
[1673384296750,1.818162,17492.0,17491.0,0.00301925]
[1673384297010,2.39678498,17492.0,17491.0,0.00301925]
[1673384297258,2.39679384,17492.0,17491.0,0.00301925]
[1673384297518,2.72047553,17492.0,17491.0,0.00301925]
[1673384297782,2.14182865,17492.0,17491.0,0.00301925]
[1673384298282,2.72046602,17492.0,17491.0,0.00301925]
[1673384299305,2.19679937,17492.0,17491.0,0.00301925]
[1673384300854,2.39679937,17492.0,17491.0,0.00301925]
[1673384302436,2.39682658,17492.0,17491.0,0.00301925]
[1673384303899,1.818162,17492.0,17491.0,0.00301925]
[1673384304429,1.818162,17492.0,17491.0,0.00291168]
[1673384304682,1.87936333,17492.0,17491.0,0.00291168]
[1673384304924,1.818162,17492.0,17491.0,0.00291168]
[1673384306692,1.826662,17492.0,17491.0,0.00291168]
[1673384306939,1.88465253,17492.0,17491.0,0.00291168]
[1673384307457,1.826662,17492.0,17491.0,0.00291168]
[1673384307734,2.14963157,17492.0,17491.0,0.00291168]
[1673384309683,2.67720529,17492.0,17491.0,0.00291168]
[1673384310192,2.54120529,17492.0,17491.0,0.00291168]
[1673384310711,2.31183157,17492.0,17491.0,0.00291168]
[1673384311250,2.89739582,17492.0,17491.0,0.00291168]
[1673384311539,2.76139582,17492.0,17491.0,0.00291168]
[1673384311724,3.74069034,17492.0,17491.0,0.00291168]
[1673384311969,3.60469034,17492.0,17491.0,0.00291168]
[1673384312209,3.74169034,17492.0,17491.0,0.00291168]
[1673384312467,3.60469034,17492.0,17491.0,0.00291168]
[1673384312714,3.90429034,17492.0,17491.0,0.00291168]
[1673384313731,3.76829034,17492.0,17491.0,0.00291168]
[1673384314469,3.90529034,17492.0,17491.0,0.00291168]
[1673384314714,3.76829034,17492.0,17491.0,0.00291168]
[1673384314967,4.03719329,17492.0,17491.0,0.00291168]
[1673384315213,4.17419329,17492.0,17491.0,0.00291168]
[1673384318280,3.33089877,17492.0,17491.0,0.00291168]
[1673384319788,4.17419329,17492.0,17491.0,0.00291168]
[1673384320045,3.90529034,17492.0,17491.0,0.00291168]
[1673384320312,4.17419624,17492.0,17491.0,0.00291168]
[1673384321071,4.17419624,17492.0,17490.0,0.00306347]
[1673384321324,1.11569334,17491.0,17490.0,0.00306347]
[1673384321601,1.852928,17491.0,17490.0,0.00306347]
[1673384321867,1.74871853,17491.0,17490.0,0.00306347]
[1673384322125,1.80843419,17491.0,17490.0,0.00306347]
[1673384322379,2.33600791,17491.0,17490.0,0.00306347]
[1673384323150,2.63660791,17491.0,17490.0,0.00306347]
[1673384323403,3.20488654,17491.0,17490.0,0.00306347]
[1673384323662,4.21178106,17491.0,17490.0,0.00306347]
[1673384323929,0.2,17490.0,17489.0,0.00301925]
[1673384324180,2.79148372,17490.0,17489.0,0.00301925]
[1673384324438,2.88825825,17490.0,17489.0,0.00301925]
[1673384324700,3.46764931,17490.0,17488.0,0.00332987]
[1673384324946,0.69967372,17489.0,17488.0,0.00332987]
[1673384325232,2.38203172,17489.0,17488.0,0.00332987]
[1673384325435,2.44002225,17489.0,17488.0,0.00332987]
[1673384325969,2.57602225,17489.0,17488.0,0.00332987]
[1673384326225,3.1396882,17489.0,17488.0,0.00332987]
[1673384327970,0.2,17488.0,17486.0,0.00133334]
[1673384328219,2.295912,17487.0,17486.0,0.00133334]
[1673384328466,2.334696,17487.0,17486.0,0.00133334]
[1673384328714,3.41197729,17487.0,17486.0,0.00133334]
[1673384328968,3.8533246,17487.0,17486.0,0.00133334]
[1673384329720,3.9893246,17487.0,17486.0,0.00133334]
[1673384329993,2.89268653,17487.0,17486.0,0.00133334]
[1673384330252,2.72868653,17487.0,17486.0,0.00133334]
[1673384330759,3.30596782,17487.0,17486.0,0.00133334]
[1673384331012,2.72868653,17487.0,17486.0,0.00133334]
[1673384331288,3.6729246,17487.0,17486.0,0.00133334]
[1673384331533,3.39564331,17487.0,17486.0,0.00133334]
[1673384332087,3.9729246,17487.0,17486.0,0.00133334]
[1673384335130,3.02868653,17487.0,17486.0,0.00133334]
[1673384335879,3.60596782,17487.0,17486.0,0.00133334]
[1673384337632,3.66568348,17487.0,17486.0,0.00133334]
[1673384341492,3.60769295,17487.0,17486.0,0.00133334]
[1673384341735,3.66568348,17487.0,17486.0,0.00133334]
[1673384342034,4.06861183,17487.0,17486.0,0.00133334]
[1673384342747,4.09621183,17487.0,17486.0,0.00133334]
[1673384342996,3.51893054,17487.0,17486.0,0.00133334]
[1673384343508,4.23234751,17487.0,17486.0,0.00133334]
[1673384344007,3.65493054,17487.0,17486.0,0.00133334]
[1673384344263,4.23234686,17487.0,17486.0,0.00133334]
[1673384344792,4.23232135,17487.0,17486.0,0.00133334]
[1673384345049,3.65493054,17487.0,17486.0,0.00133334]
[1673384346092,4.23247377,17487.0,17486.0,0.00133334]
[1673384346344,3.65493054,17487.0,17486.0,0.00133334]
[1673384347889,3.49133054,17487.0,17486.0,0.00133334]
[1673384348391,3.49133054,17487.0,17486.0,0.00125187]
[1673384348646,3.08840219,17487.0,17486.0,0.00125187]